bitfinex/quotes_SOLUSD_20250612
["timestamp","ask_amount","ask_price","bid_price","bid_amount"]
[1749735263342,0.28432314,158.49,158.46,28.82097596]
[1749735263574,155.40940257,158.5,158.46,28.82097596]
[1749735264256,0.28432314,158.49,158.45,28.82097596]
[1749735264459,0.28432314,158.49,158.41,26.0]
[1749735264460,6.59421608,158.49,158.46,28.82097596]
[1749735264677,6.59421608,158.49,158.43,26.0]
[1749735265190,0.28432314,158.47,158.38,1.5576]
[1749735265365,56.5852991,158.47,158.42,28.82097596]
[1749735266065,27.76432314,158.47,158.42,28.82097596]
[1749735266579,56.5852991,158.47,158.42,28.82097596]
[1749735266793,56.5852991,158.47,158.43,28.82097596]
[1749735266794,6.31074088,158.46,158.43,28.82097596]
[1749735266941,6.31074088,158.46,158.4,26.0]
[1749735267146,6.31074088,158.46,158.43,28.82097596]
[1749735267442,6.31074088,158.46,158.4,26.0]
[1749735267641,6.31074088,158.46,158.42,28.82097596]
[1749735269060,6.31074088,158.46,158.43,28.82097596]
[1749735269463,6.31074088,158.46,158.42,28.82097596]
[1749735270961,6.31074088,158.46,158.4,26.0]
[1749735271160,6.31074088,158.46,158.42,28.82097596]
[1749735272283,29.1052991,158.45,158.38,1.5576]
[1749735272451,28.82097596,158.42,158.34,1.6426]
[1749735272652,0.28432314,158.4,158.36,28.82097596]
[1749735272860,6.31352989,158.39,158.34,1.6426]
[1749735273072,6.31352989,158.39,158.35,28.82097596]
[1749735273462,27.4,158.41,158.37,28.82097596]
[1749735273788,33.7128211,158.41,158.37,28.82097596]
[1749735274391,62.53379706,158.41,158.34,1.6426]
[1749735274603,0.28432314,158.4,158.37,28.82097596]
[1749735274783,0.28432314,158.4,158.34,1.6426]
[1749735275096,6.59780511,158.4,158.37,28.82097596]
[1749735275463,6.59780511,158.4,158.36,28.82097596]
[1749735275975,6.59780511,158.4,158.37,28.82097596]
[1749735276175,6.59780511,158.4,158.34,1.6426]
[1749735276478,6.31348197,158.4,158.38,28.82097596]
[1749735276802,6.31348197,158.4,158.37,28.82097596]
[1749735277000,33.71287426,158.41,158.37,28.82097596]
[1749735277304,33.71287426,158.41,158.38,28.82097596]
[1749735278274,33.71287426,158.41,158.39,28.82097596]
[1749735278480,62.53385022,158.41,158.36,28.82097596]
[1749735278666,28.82097596,158.39,158.3,8.2805]
[1749735278875,29.1052991,158.35,158.3,1.6171]
[1749735279088,27.68432314,158.38,158.3,1.6171]
[1749735279089,28.82097596,158.34,158.3,1.6171]
[1749735279287,28.82097596,158.35,158.3,28.82097596]
[1749735279696,18.64964886,158.35,158.3,28.82097596]
[1749735280193,18.64964886,158.33,158.28,28.82097596]
[1749735280396,0.28432314,158.32,158.28,28.82097596]
[1749735281874,0.28432314,158.32,158.26,1.6171]
[1749735282074,0.28432314,158.32,158.28,28.82097596]
[1749735282797,18.64964886,158.31,158.25,26.0]
[1749735283097,47.47062482,158.29,158.22,8.2388]
[1749735283295,47.47062482,158.29,158.22,1.6388]
[1749735283296,0.28432314,158.28,158.22,1.6388]
[1749735283689,0.28432314,158.28,158.25,28.82097596]
[1749735284499,0.28432314,158.28,158.22,1.6388]
[1749735284683,18.64964886,158.27,158.21,26.0]
[1749735284996,18.64964886,158.27,158.23,28.82097596]
[1749735285226,18.933972,158.28,158.24,28.82097596]
[1749735285591,18.933972,158.28,158.25,28.82097596]
[1749735286705,18.933972,158.28,158.21,26.0]
[1749735286706,18.933972,158.28,158.24,28.82097596]
[1749735286997,54.07291095,158.28,158.23,28.82097596]
[1749735287180,18.64964886,158.25,158.21,28.82097596]
[1749735287578,18.64964886,158.25,158.22,28.82097596]
[1749735288179,27.70432314,158.26,158.22,28.82097596]
[1749735289280,18.64964886,158.28,158.25,28.82097596]
[1749735289474,149.1,158.29,158.27,28.82097596]
[1749735289698,24.96625228,158.32,158.28,28.82097596]
[1749735289889,18.64964886,158.31,158.28,28.82097596]
[1749735290508,18.64964886,158.32,158.29,28.82097596]
[1749735290798,149.1,158.34,158.25,26.0]
[1749735291000,18.64964886,158.33,158.3,28.82097596]
[1749735291301,18.64964886,158.33,158.31,28.82097596]
[1749735291683,149.1,158.34,158.31,28.82097596]
[1749735292207,149.1,158.34,158.32,28.82097596]
[1749735292589,149.1,158.34,158.26,7.8019]
[1749735292778,149.1,158.34,158.32,28.82097596]
[1749735294581,149.1,158.34,158.26,7.8019]
[1749735294784,149.1,158.34,158.32,28.82097596]
[1749735296999,250.23494796,158.33,158.22,30.44777596]
[1749735297203,18.933972,158.32,158.29,28.82097596]
[1749735297506,176.46,158.33,158.31,28.82097596]
[1749735297806,149.1,158.33,158.32,28.82097596]
[1749735298304,18.64964886,158.37,158.32,28.82097596]
[1749735298504,46.00964886,158.37,158.35,28.82097596]
[1749735302009,26.0,158.42,158.38,28.82097596]
[1749735302213,18.64964886,158.41,158.4,28.82097596]
[1749735302390,18.64964886,158.41,158.32,26.0]
[1749735302779,18.64964886,158.41,158.39,28.82097596]
[1749735302984,6.31198142,158.43,158.4,28.82097596]
[1749735303226,46.25181043,158.42,158.4,28.82097596]
[1749735303587,155.41158109,158.44,158.41,28.82097596]
[1749735303789,18.64964886,158.43,158.38,1.6293]
[1749735304019,18.64964886,158.43,158.39,28.82097596]
[1749735304020,0.28432314,158.42,158.39,28.82097596]
[1749735304221,6.31273278,158.41,158.39,28.82097596]
[1749735304410,46.10964886,158.43,158.34,27.6293]
[1749735304622,149.1,158.44,158.42,28.82097596]
[1749735304829,149.1,158.44,158.43,28.82097596]
[1749735305137,18.64964886,158.46,158.43,28.82097596]
[1749735305347,46.10964886,158.46,158.45,28.82097596]
[1749735305703,6.30954634,158.49,158.45,28.82097596]
[1749735305909,6.30954634,158.49,158.4,28.82097596]
[1749735305910,6.30954634,158.49,158.47,28.82097596]
[1749735306207,52.41959333,158.48,158.41,1.5034]
[1749735306601,81.24056929,158.48,158.43,28.82097596]
[1749735306804,0.28432314,158.47,158.45,28.82097596]
[1749735307036,0.28432314,158.47,158.44,28.82097596]
[1749735307339,0.28432314,158.45,158.37,1.6295]
[1749735307629,18.933972,158.43,158.33,1.5722]
[1749735307831,18.933972,158.39,158.35,28.82097596]
[1749735308310,6.31392852,158.38,158.35,28.82097596]
[1749735308820,6.31392852,158.38,158.33,1.5722]
[1749735309006,33.77392852,158.38,158.33,1.5722]
[1749735309206,18.933972,158.37,158.34,28.82097596]
[1749735310433,25.24844423,158.37,158.34,28.82097596]
[1749735310936,56.32097596,158.36,158.31,28.82097596]
[1749735311135,18.933972,158.35,158.31,28.82097596]
[1749735311907,18.933972,158.35,158.29,1.5941]
[1749735312103,47.75494796,158.35,158.27,26.0]
[1749735312307,6.31632137,158.32,158.28,28.82097596]
[1749735312524,33.79632137,158.32,158.25,26.0]
[1749735312733,33.79632137,158.32,158.24,27.6359]
[1749735312734,33.79632137,158.32,158.28,28.82097596]
[1749735313037,33.79632137,158.32,158.29,28.82097596]
[1749735313416,176.58,158.34,158.31,28.82097596]
[1749735313623,176.58,158.34,158.32,28.82097596]
[1749735313814,182.89558091,158.34,158.32,28.82097596]
[1749735314014,182.89558091,158.34,158.31,28.82097596]
[1749735314512,182.89558091,158.34,158.32,28.82097596]
[1749735315114,182.89558091,158.34,158.24,27.6359]
[1749735315307,182.89558091,158.34,158.31,28.82097596]
[1749735315514,47.75494796,158.33,158.28,28.82097596]
[1749735315719,28.82097596,158.32,158.27,28.82097596]
[1749735315920,27.48,158.32,158.28,28.82097596]
[1749735316122,27.48,158.32,158.29,28.82097596]
[1749735316321,6.31672035,158.31,158.29,28.82097596]
[1749735316520,6.31672035,158.31,158.28,28.82097596]
[1749735316730,6.31672035,158.31,158.26,28.82097596]
[1749735316731,18.933972,158.3,158.26,28.82097596]
[1749735316925,18.933972,158.28,158.19,3.56371638]
[1749735317124,46.413972,158.28,158.24,28.82097596]
[1749735317324,46.413972,158.28,158.19,3.56371638]
[1749735317325,75.23494796,158.28,158.19,3.56371638]
[1749735317634,18.64964886,158.26,158.22,28.82097596]
[1749735317840,46.12964886,158.26,158.22,28.82097596]
[1749735318137,46.12964886,158.26,158.23,28.82097596]
[1749735318532,6.31911532,158.25,158.23,28.82097596]
[1749735319114,6.31911532,158.25,158.19,3.56371638]
[1749735319115,18.64964886,158.24,158.19,3.56371638]
[1749735319346,27.48,158.26,158.23,28.82097596]
[1749735319514,6.31791761,158.28,158.25,28.82097596]
[1749735319718,33.77791761,158.28,158.26,28.82097596]
[1749735319923,27.46,158.28,158.26,28.82097596]
[1749735320123,27.46,158.28,158.25,28.82097596]
[1749735320328,27.46,158.28,158.19,3.56371638]
[1749735320329,27.46,158.28,158.26,28.82097596]
[1749735320634,149.1,158.3,158.27,28.82097596]
[1749735320834,149.1,158.3,158.29,28.82097596]
[1749735323032,149.1,158.3,158.28,28.82097596]
[1749735323240,18.64964886,158.29,158.26,28.82097596]
[1749735323424,18.64964886,158.29,158.27,28.82097596]
[1749735324123,176.58,158.3,158.28,28.82097596]
[1749735324323,176.58,158.3,158.29,28.82097596]
[1749735325158,182.89719795,158.3,158.27,28.82097596]
[1749735325324,18.64964886,158.29,158.22,26.0]
[1749735325645,176.58,158.3,158.28,28.82097596]
[1749735326142,182.89713011,158.3,158.27,28.82097596]
[1749735326349,18.64964886,158.29,158.26,28.82097596]
[1749735326639,24.96731264,158.29,158.27,28.82097596]
[1749735326838,24.96731264,158.29,158.22,54.82097596]
[1749735326839,24.96731264,158.29,158.26,28.82097596]
[1749735327534,24.96731264,158.29,158.25,28.82097596]
[1749735327836,24.96731264,158.29,158.26,28.82097596]
[1749735328229,24.96731264,158.29,158.25,28.82097596]
[1749735328436,53.7882886,158.29,158.19,3.56371638]
[1749735328630,33.73820614,158.28,158.25,28.82097596]
[1749735329245,27.42,158.28,158.27,28.82097596]
[1749735329431,33.73791761,158.28,158.27,28.82097596]
[1749735329636,27.42,158.28,158.27,28.82097596]
[1749735330347,149.1,158.3,158.27,28.82097596]
[1749735330544,149.1,158.36,158.29,28.82097596]
[1749735330846,155.41488697,158.36,158.34,28.82097596]
[1749735331262,182.85488697,158.36,158.34,28.82097596]
[1749735331429,195.16964886,158.36,158.35,28.82097596]
[1749735331623,174.0643748,158.36,158.35,28.82097596]
[1749735331841,167.74964886,158.36,158.35,28.82097596]
[1749735332032,149.1,158.36,158.35,28.82097596]
[1749735332350,149.1,158.44,158.35,28.82097596]
[1749735332541,33.77193587,158.43,158.4,28.82097596]
[1749735332852,18.64964886,158.41,158.4,28.82097596]
[1749735333349,149.1,158.42,158.4,28.82097596]
[1749735333556,149.1,158.42,158.41,28.82097596]
[1749735333738,155.41234418,158.42,158.4,28.82097596]
[1749735334952,167.74964886,158.42,158.41,28.82097596]
[1749735335156,149.1,158.42,158.41,28.82097596]
[1749735335745,155.4123343,158.42,158.34,34.2802]
[1749735335942,155.4123343,158.42,158.4,28.82097596]
[1749735336155,149.1,158.42,158.4,28.82097596]
[1749735336459,155.41260991,158.42,158.4,28.82097596]
[1749735336761,155.41260991,158.42,158.34,34.2802]
[1749735336953,155.41260991,158.42,158.39,28.82097596]
[1749735337543,27.46,158.41,158.37,28.82097596]
[1749735337787,18.64964886,158.4,158.37,28.82097596]
[1749735338653,155.69693305,158.42,158.39,28.82097596]
[1749735338849,27.46,158.41,158.4,28.82097596]
[1749735339051,182.85260991,158.42,158.4,28.82097596]
[1749735339232,155.41260991,158.42,158.4,28.82097596]
[1749735339433,182.85260991,158.42,158.4,28.82097596]
[1749735339933,176.54,158.42,158.4,28.82097596]
[1749735340148,182.85243316,158.42,158.4,28.82097596]
[1749735340358,182.85243316,158.42,158.39,28.82097596]
[1749735341331,0.28432314,158.4,158.36,28.82097596]
[1749735341542,27.42,158.39,158.36,28.82097596]
[1749735341966,18.64964886,158.38,158.35,28.82097596]
[1749735342166,18.64964886,158.36,158.3,1.5931]
[1749735342364,27.4,158.35,158.31,28.82097596]
[1749735342957,27.4,158.35,158.32,28.82097596]
[1749735343166,27.4,158.36,158.34,28.82097596]
[1749735343350,176.5,158.37,158.35,28.82097596]
[1749735343758,149.1,158.37,158.36,28.82097596]
[1749735345468,1.5065,158.45,158.36,28.82097596]
[1749735345469,32.31193587,158.43,158.36,28.82097596]
[1749735345768,18.64964886,158.43,158.41,28.82097596]
[1749735346073,46.02964886,158.43,158.41,28.82097596]
[1749735346248,149.1,158.44,158.41,28.82097596]
[1749735346447,182.81176433,158.44,158.41,28.82097596]
[1749735346755,149.1,158.44,158.43,28.82097596]
[1749735347075,6.3108367,158.46,158.43,28.82097596]
[1749735347250,33.7108367,158.46,158.44,28.82097596]
[1749735347657,33.7108367,158.46,158.43,28.82097596]
[1749735347854,24.95971376,158.48,158.45,28.82097596]
[1749735348053,149.1,158.5,158.46,28.82097596]
[1749735348054,6.30969285,158.49,158.46,28.82097596]
[1749735348271,33.70969285,158.49,158.46,28.82097596]
[1749735348860,33.70969285,158.49,158.45,28.82097596]
[1749735349261,33.70969285,158.49,158.46,28.82097596]
[1749735349577,176.5,158.5,158.48,28.82097596]
[1749735349754,155.40915862,158.5,158.41,6.3743]
[1749735349955,182.78915862,158.5,158.47,28.82097596]
[1749735350557,182.78915862,158.5,158.41,6.3743]
[1749735350853,211.61013458,158.5,158.45,28.82097596]
[1749735351151,182.78915862,158.5,158.46,28.82097596]
[1749735351972,27.36,158.49,158.46,28.82097596]
[1749735352372,27.36,158.49,158.47,28.82097596]
[1749735352563,27.36,158.49,158.48,28.82097596]
[1749735352759,176.46,158.5,158.48,28.82097596]
[1749735353082,176.46,158.5,158.49,28.82097596]
[1749735353083,149.1,158.5,158.49,28.82097596]
[1749735353256,155.40914826,158.5,158.49,28.82097596]
[1749735353456,155.40914826,158.5,158.44,26.0]
[1749735353657,155.40914826,158.5,158.47,28.82097596]
[1749735353858,155.40914826,158.5,158.44,26.0]
[1749735354064,18.64964886,158.49,158.41,6.3743]
[1749735354267,18.64964886,158.49,158.41,32.3743]
[1749735354471,27.34,158.48,158.45,28.82097596]
[1749735354755,27.34,158.48,158.41,32.3743]
[1749735354962,27.34,158.48,158.45,28.82097596]
[1749735355166,27.34,158.48,158.46,28.82097596]
[1749735355684,6.31034265,158.47,158.46,28.82097596]
[1749735355854,6.31034265,158.47,158.41,26.0]
[1749735356057,74.83062482,158.46,158.38,1.5416]
[1749735356255,47.47062482,158.44,158.38,1.5416]
[1749735356473,28.82097596,158.42,158.38,28.82097596]
[1749735356670,27.36,158.41,158.38,28.82097596]
[1749735356877,27.36,158.41,158.35,26.0]
[1749735357079,27.36,158.41,158.38,28.82097596]
[1749735357489,27.36,158.41,158.34,1.5836]
[1749735357653,6.31313131,158.4,158.38,28.82097596]
[1749735358071,6.31313131,158.4,158.37,28.82097596]
[1749735358467,6.31313131,158.4,158.36,28.82097596]
[1749735358869,6.31313131,158.4,158.38,28.82097596]
[1749735359260,6.31313131,158.4,158.37,28.82097596]
[1749735359659,25.24622777,158.43,158.39,28.82097596]
[1749735359860,26.0,158.44,158.41,28.82097596]
[1749735359861,32.31164762,158.44,158.41,28.82097596]
[1749735360180,155.41126226,158.45,158.43,28.82097596]
[1749735360380,182.75126226,158.45,158.43,28.82097596]
[1749735360584,149.1,158.45,158.43,28.82097596]
[1749735360789,149.1,158.45,158.44,28.82097596]
[1749735362484,182.75133973,158.45,158.38,26.0]
[1749735362689,182.75133973,158.45,158.42,28.82097596]
[1749735363265,18.64964886,158.44,158.38,26.0]
[1749735363465,182.75133973,158.45,158.38,26.0]
[1749735363675,176.44,158.45,158.43,28.82097596]
[1749735363969,182.75122903,158.45,158.43,28.82097596]
[1749735364273,182.75122903,158.45,158.42,28.82097596]
[1749735364476,182.75122903,158.45,158.43,28.82097596]
[1749735364668,182.75122903,158.45,158.38,26.0]
[1749735364868,149.1,158.45,158.44,28.82097596]
[1749735365576,149.1,158.45,158.4,28.82097596]
[1749735365786,149.1,158.45,158.44,28.82097596]
[1749735366792,27.34,158.47,158.44,28.82097596]
[1749735367092,33.6505889,158.47,158.45,28.82097596]
[1749735367279,33.6505889,158.47,158.38,26.0]
[1749735367480,18.64964886,158.44,158.38,26.0]
[1749735367686,45.96964886,158.44,158.38,26.0]
[1749735367881,45.96964886,158.44,158.41,28.82097596]
[1749735368494,6.31193587,158.43,158.41,28.82097596]
[1749735369194,6.31193587,158.43,158.38,26.0]
[1749735369489,6.31193587,158.43,158.41,28.82097596]
[1749735369792,52.28132731,158.44,158.42,28.82097596]
[1749735369994,27.32,158.44,158.43,28.82097596]
[1749735370175,176.46,158.45,158.43,28.82097596]
[1749735370370,155.41113916,158.45,158.44,28.82097596]
[1749735370568,155.41113916,158.45,158.43,28.82097596]
[1749735370775,75.09494796,158.44,158.39,28.82097596]
[1749735371267,27.34,158.44,158.43,28.82097596]
[1749735371496,182.77113916,158.45,158.43,28.82097596]
[1749735371795,149.1,158.45,158.44,28.82097596]
[1749735373685,149.1,158.52,158.45,1.5362]
[1749735373991,27.36,158.51,158.45,1.5362]
[1749735374180,27.36,158.51,158.49,28.82097596]
[1749735374803,33.66898944,158.51,158.49,28.82097596]
[1749735375198,33.64898944,158.51,158.49,28.82097596]
[1749735375577,27.34,158.51,158.49,28.82097596]
[1749735375884,52.29857762,158.51,158.47,28.82097596]
[1749735376085,81.11955358,158.51,158.46,28.82097596]
[1749735376474,96.89142917,158.51,158.46,28.82097596]
[1749735376708,96.89142917,158.51,158.47,28.82097596]
[1749735377007,68.07045321,158.51,158.47,28.82097596]
[1749735377177,52.29857762,158.51,158.47,28.82097596]
[1749735377379,52.29857762,158.51,158.45,1.5362]
[1749735377599,18.64964886,158.49,158.41,1.5995]
[1749735377814,224.19494796,158.48,158.41,1.5995]
[1749735378113,18.64964886,158.46,158.42,28.82097596]
[1749735378276,18.64964886,158.44,158.37,1.5176]
[1749735378474,27.34,158.43,158.4,28.82097596]
[1749735378811,27.34,158.43,158.41,28.82097596]
[1749735379388,33.65199135,158.43,158.4,28.82097596]
[1749735379594,27.34,158.43,158.41,28.82097596]
[1749735380021,33.65198076,158.43,158.4,28.82097596]
[1749735380394,26.0,158.4,158.33,1.5719]
[1749735380723,6.31392852,158.38,158.35,28.82097596]
[1749735380926,27.34,158.39,158.33,1.5719]
[1749735381159,193.74964886,158.42,158.38,28.82097596]
[1749735381419,193.74964886,158.42,158.4,28.82097596]
[1749735381420,27.34,158.41,158.4,28.82097596]
[1749735381794,27.34,158.41,158.39,28.82097596]
[1749735382325,47.47062482,158.4,158.33,1.5719]
[1749735382527,27.36,158.39,158.35,28.82097596]
[1749735382894,6.31392852,158.38,158.35,28.82097596]
[1749735383400,6.31392852,158.38,158.36,28.82097596]
[1749735383605,6.31392852,158.38,158.33,1.5719]
[1749735385090,33.67366396,158.39,158.33,1.5719]
[1749735385509,62.49463992,158.39,158.34,28.82097596]
[1749735385707,33.67366396,158.39,158.34,28.82097596]
[1749735386024,33.67366396,158.39,158.35,28.82097596]
[1749735386321,33.67366396,158.39,158.36,28.82097596]
[1749735386817,27.36,158.39,158.36,28.82097596]
[1749735387012,27.36,158.39,158.37,28.82097596]
[1749735387513,33.63286544,158.41,158.37,28.82097596]
[1749735387707,174.06203858,158.42,158.34,26.0]
[1749735388015,149.1,158.42,158.41,28.82097596]
[1749735388393,149.1,158.42,158.4,28.82097596]
[1749735388721,149.1,158.42,158.41,28.82097596]
[1749735389398,182.73252777,158.42,158.38,28.82097596]
[1749735390522,18.64964886,158.41,158.38,28.82097596]
[1749735390819,18.64964886,158.41,158.39,28.82097596]
[1749735391114,45.96964886,158.41,158.39,28.82097596]
[1749735391299,52.28258696,158.41,158.39,28.82097596]
[1749735391806,33.6329381,158.41,158.34,26.0]
[1749735391997,33.6329381,158.41,158.39,28.82097596]
[1749735392217,33.6329381,158.41,158.38,28.82097596]
[1749735392416,33.6329381,158.41,158.39,28.82097596]
[1749735392718,27.32,158.41,158.4,28.82097596]
[1749735392893,176.42,158.42,158.4,28.82097596]
[1749735393222,176.42,158.42,158.41,28.82097596]
[1749735393418,149.1,158.42,158.41,28.82097596]
[1749735393801,18.64964886,158.45,158.41,28.82097596]
[1749735393802,6.31125095,158.45,158.41,28.82097596]
[1749735394111,27.3,158.46,158.44,28.82097596]
[1749735394311,27.3,158.46,158.45,28.82097596]
[1749735394523,27.3,158.46,158.44,28.82097596]
[1749735394696,27.3,158.46,158.42,28.82097596]
[1749735394901,27.3,158.46,158.43,28.82097596]
[1749735395217,27.32,158.46,158.44,28.82097596]
[1749735395418,6.31034265,158.47,158.44,28.82097596]
[1749735395724,33.61034265,158.47,158.43,28.82097596]
[1749735396103,18.64964886,158.46,158.41,1.6525]
[1749735396303,82.12097596,158.45,158.4,28.82097596]
[1749735396720,18.64964886,158.44,158.4,28.82097596]
[1749735397015,27.32,158.43,158.37,1.5764]
[1749735397224,18.64964886,158.42,158.37,1.5764]
[1749735397523,18.64964886,158.42,158.4,28.82097596]
[1749735397728,27.32,158.43,158.4,28.82097596]
[1749735398526,182.71178193,158.44,158.41,28.82097596]
[1749735398698,182.71178193,158.44,158.4,28.82097596]
[1749735399720,182.71178193,158.44,158.37,1.5764]
[1749735399918,182.71178193,158.44,158.4,28.82097596]
[1749735400627,182.71178193,158.44,158.37,1.5764]
[1749735400628,47.47062482,158.43,158.38,28.82097596]
[1749735400810,18.64964886,158.43,158.38,28.82097596]
[1749735401001,5.85489009,158.52,158.4,28.82097596]
[1749735401201,35.12932821,158.52,158.47,28.82097596]
[1749735401402,27.52,158.51,158.47,28.82097596]
[1749735401617,27.52,158.51,158.41,26.0]
[1749735401825,27.52,158.51,158.45,28.82097596]
[1749735402014,28.82097596,158.49,158.38,26.0]
[1749735402331,18.64964886,158.47,158.38,26.0]
[1749735402530,33.83110161,158.46,158.38,26.0]
[1749735402735,33.83110161,158.46,158.42,28.82097596]
[1749735402910,53.80432314,158.49,158.44,28.82097596]
[1749735403226,53.80432314,158.49,158.45,28.82097596]
[1749735403227,18.64964886,158.48,158.45,28.82097596]
[1749735403526,18.64964886,158.48,158.46,28.82097596]
[1749735404014,18.64964886,158.48,158.44,28.82097596]
[1749735404209,47.47062482,158.46,158.41,28.82097596]
[1749735404529,33.83113916,158.45,158.41,28.82097596]
[1749735405205,33.83113916,158.45,158.42,28.82097596]
[1749735406124,33.83113916,158.45,158.38,26.0]
[1749735406313,27.52,158.45,158.42,28.82097596]
[1749735406825,27.52,158.45,158.38,26.0]
[1749735406826,27.52,158.45,158.44,28.82097596]
[1749735407004,24.95972976,158.48,158.44,28.82097596]
[1749735407199,27.48,158.47,158.45,28.82097596]
[1749735407627,27.48,158.47,158.46,28.82097596]
[1749735407929,27.48,158.47,158.45,28.82097596]
[1749735408423,27.48,158.47,158.44,28.82097596]
[1749735408606,6.5954623,158.45,158.41,28.82097596]
[1749735408815,46.10964886,158.44,158.41,28.82097596]
[1749735409809,46.10964886,158.44,158.38,26.0]
[1749735410014,46.10964886,158.44,158.41,28.82097596]
[1749735410220,46.10964886,158.44,158.42,28.82097596]
[1749735410411,176.56,158.46,158.43,28.82097596]
[1749735410731,27.46,158.48,158.45,28.82097596]
[1749735410937,51.22567776,158.54,158.47,28.82097596]
[1749735411229,18.64964886,158.51,158.49,28.82097596]
[1749735411604,149.1,158.52,158.5,28.82097596]
[1749735411906,149.1,158.52,158.51,28.82097596]
[1749735416329,176.56,158.52,158.51,28.82097596]
[1749735418124,155.40838502,158.52,158.46,26.0]
[1749735418425,149.1,158.52,158.51,28.82097596]
[1749735418817,149.1,158.52,158.44,1.5688]
[1749735418818,155.40854999,158.52,158.44,1.5688]
[1749735419133,195.32964886,158.51,158.45,28.82097596]
[1749735419312,28.82097596,158.5,158.45,28.82097596]
[1749735419514,27.58,158.49,158.46,28.82097596]
[1749735419811,196.57062482,158.51,158.44,1.5688]
[1749735419812,27.58,158.48,158.47,28.82097596]
[1749735420235,33.88994447,158.48,158.46,28.82097596]
[1749735422028,33.88994447,158.48,158.47,28.82097596]
[1749735422029,27.58,158.48,158.47,28.82097596]
[1749735422227,167.74964886,158.51,158.47,28.82097596]
[1749735422531,27.52,158.5,158.49,28.82097596]
[1749735423022,33.82929648,158.5,158.49,28.82097596]
[1749735423215,27.52,158.5,158.49,28.82097596]
[1749735423621,149.1,158.51,158.49,28.82097596]
[1749735423828,176.6,158.51,158.5,28.82097596]
[1749735424032,149.1,158.51,158.5,28.82097596]
[1749735424238,149.1,158.58,158.5,28.82097596]
[1749735424543,18.64964886,158.56,158.53,28.82097596]
[1749735424738,27.52,158.55,158.53,28.82097596]
[1749735425146,155.40636312,158.57,158.54,28.82097596]
[1749735425320,182.90636312,158.57,158.55,28.82097596]
[1749735425635,176.62,158.57,158.56,28.82097596]
[1749735425838,149.1,158.57,158.56,28.82097596]
[1749735426838,24.95451057,158.61,158.56,28.82097596]
[1749735427030,27.5,158.6,158.58,28.82097596]
[1749735427228,24.95451057,158.61,158.58,28.82097596]
[1749735427528,155.40447326,158.62,158.6,28.82097596]
[1749735427840,155.4044152,158.62,158.6,28.82097596]
[1749735428024,27.48,158.61,158.6,28.82097596]
[1749735428228,149.1,158.62,158.6,28.82097596]
[1749735428433,149.1,158.62,158.61,28.82097596]
[1749735429333,149.1,158.62,158.58,28.82097596]
[1749735430744,149.1,158.62,158.61,28.82097596]
[1749735432115,149.1,158.62,158.55,27.5243]
[1749735432543,149.1,158.62,158.6,28.82097596]
[1749735432846,182.90444729,158.62,158.55,27.5243]
[1749735433023,182.90444729,158.62,158.61,28.82097596]
[1749735433350,182.90444729,158.62,158.6,28.82097596]
[1749735433644,182.90444729,158.62,158.59,28.82097596]
[1749735433827,18.64964886,158.61,158.55,1.5243]
[1749735434021,27.48,158.6,158.58,28.82097596]
[1749735434222,27.48,158.6,158.59,28.82097596]
[1749735435754,33.78517023,158.6,158.59,28.82097596]
[1749735436354,27.48,158.6,158.59,28.82097596]
[1749735437246,27.48,158.6,158.55,1.5243]
[1749735437635,47.47062482,158.59,158.51,1.5527]
[1749735437934,27.44,158.58,158.51,1.5527]
[1749735438139,27.44,158.58,158.54,28.82097596]
[1749735438341,27.44,158.58,158.55,28.82097596]
[1749735438551,27.44,158.58,158.56,28.82097596]
[1749735439125,46.06964886,158.59,158.57,28.82097596]
[1749735439523,27.42,158.59,158.58,28.82097596]
[1749735440538,33.72556781,158.59,158.57,28.82097596]
[1749735440952,62.54654377,158.59,158.51,30.65063631]
[1749735441125,33.72556781,158.59,158.55,28.82097596]
[1749735441330,33.72556781,158.59,158.56,28.82097596]
[1749735443049,33.72556781,158.59,158.51,30.65063631]
[1749735443232,33.72556781,158.59,158.55,28.82097596]
[1749735443635,33.72556781,158.59,158.56,28.82097596]
[1749735443834,33.72556781,158.59,158.57,28.82097596]
[1749735444454,27.42,158.59,158.58,28.82097596]
[1749735444756,6.30524066,158.6,158.58,28.82097596]
[1749735444934,33.72524066,158.6,158.58,28.82097596]
[1749735445451,33.72524066,158.6,158.57,28.82097596]
[1749735445854,62.54621662,158.6,158.55,28.82097596]